[Event "Early-Titled-Tuesday-Blitz-August-29-2023"]
[Site "Chess.com"]
[Date "2023.08.29"]
[Round "6"]
[White "Zhani-Z"]
[Black "Gyulamiryan-koryun"]
[Result "0-1"]
[WhiteElo "2324"]
[BlackElo "2076"]
[TimeControl "180+1"]
[EndTime "9:07:05 PDT"]
[Termination "Gyulamiryan-koryun won by checkmate"]

1. e4 {[%clk 0:03:00.9]} 1... c5 {[%clk 0:02:58.4]} 2. Nf3 {[%clk 0:03:00.8]}
2... d6 {[%clk 0:02:58.5]} 3. Bb5+ {[%clk 0:02:59.9]} 3... Bd7 {[%clk
0:02:57.3]} 4. Bxd7+ {[%clk 0:03:00]} 4... Qxd7 {[%clk 0:02:58.2]} 5. O-O {[%clk
0:03:00.1]} 5... Nc6 {[%clk 0:02:57.1]} 6. c3 {[%clk 0:02:59.8]} 6... g6 {[%clk
0:02:56.4]} 7. d4 {[%clk 0:02:59.4]} 7... cxd4 {[%clk 0:02:55.1]} 8. cxd4 {[%clk
0:03:00.3]} 8... Bg7 {[%clk 0:02:53.8]} 9. Nc3 {[%clk 0:03:00.1]} 9... Nf6
{[%clk 0:02:49]} 10. Be3 {[%clk 0:02:55]} 10... O-O {[%clk 0:02:46.3]} 11. e5
{[%clk 0:02:49]} 11... Ng4 {[%clk 0:02:44]} 12. exd6 {[%clk 0:02:04.3]} 12...
Nxe3 {[%clk 0:02:38]} 13. fxe3 {[%clk 0:02:01.4]} 13... Qxd6 {[%clk 0:02:36.7]}
14. Qd2 {[%clk 0:01:52.9]} 14... e6 {[%clk 0:02:31.9]} 15. Ne4 {[%clk
0:01:47.5]} 15... Qb4 {[%clk 0:02:23.9]} 16. Rac1 {[%clk 0:01:35.5]} 16... Rad8
{[%clk 0:02:09.1]} 17. Qxb4 {[%clk 0:01:32.2]} 17... Nxb4 {[%clk 0:02:08.1]} 18.
Rc7 {[%clk 0:01:27.3]} 18... Nd5 {[%clk 0:01:57.9]} 19. Rxb7 {[%clk 0:01:23.8]}
19... Nxe3 {[%clk 0:01:57.3]} 20. Rc1 {[%clk 0:01:07.4]} 20... Nf5 {[%clk
0:01:53.5]} 21. Rxa7 {[%clk 0:00:52.8]} 21... Nxd4 {[%clk 0:01:52.5]} 22. Kf2
{[%clk 0:00:41.5]} 22... Nxf3 {[%clk 0:01:43.3]} 23. Kxf3 {[%clk 0:00:40.5]}
23... Bxb2 {[%clk 0:01:43]} 24. Rcc7 {[%clk 0:00:32.4]} 24... h6 {[%clk
0:01:31.7]} 25. Nc5 {[%clk 0:00:27.7]} 25... Bd4 {[%clk 0:01:23.4]} 26. Nd7
{[%clk 0:00:22.2]} 26... Bxa7 {[%clk 0:01:22.3]} 27. Rxa7 {[%clk 0:00:19.5]}
27... Ra8 {[%clk 0:01:15.8]} 28. Rc7 {[%clk 0:00:11.2]} 28... Rfc8 {[%clk
0:01:12.4]} 29. Rxc8+ {[%clk 0:00:06.5]} 29... Rxc8 {[%clk 0:01:11.9]} 30. a4
{[%clk 0:00:05.8]} 30... Rc3+ {[%clk 0:01:05.4]} 31. Ke4 {[%clk 0:00:03.7]}
31... Rc4+ {[%clk 0:01:05.2]} 32. Ke5 {[%clk 0:00:03.2]} 32... Rxa4 {[%clk
0:01:05.3]} 33. Kf6 {[%clk 0:00:03.3]} 33... Rf4+ {[%clk 0:01:03.9]} 34. Ke7
{[%clk 0:00:03.4]} 34... Kg7 {[%clk 0:01:02.8]} 35. Ne5 {[%clk 0:00:01.5]} 35...
Rf2 {[%clk 0:01:01.6]} 36. Ng4 {[%clk 0:00:01.4]} 36... Rxg2 {[%clk 0:01:00.6]}
37. Nf6 {[%clk 0:00:01.2]} 37... Rxh2 {[%clk 0:01:00]} 38. Ne8+ {[%clk
0:00:01.6]} 38... Kh7 {[%clk 0:00:59.4]} 39. Nf6+ {[%clk 0:00:01.8]} 39... Kg7
{[%clk 0:00:58.6]} 40. Ne8+ {[%clk 0:00:01.9]} 40... Kh8 {[%clk 0:00:55.4]} 41.
Kf8 {[%clk 0:00:01.7]} 41... Rf2 {[%clk 0:00:51.4]} 42. Nd6 {[%clk 0:00:01.8]}
42... h5 {[%clk 0:00:49.9]} 43. Ne4 {[%clk 0:00:02.1]} 43... Rf5 {[%clk
0:00:49.2]} 44. Nd6 {[%clk 0:00:01.8]} 44... h4 {[%clk 0:00:49.3]} 45. Ne4
{[%clk 0:00:01.4]} 45... h3 {[%clk 0:00:48.6]} 46. Ng3 {[%clk 0:00:01.9]} 46...
Rh5 {[%clk 0:00:47.6]} 47. Ne4 {[%clk 0:00:01.4]} 47... h2 {[%clk 0:00:47.1]}
48. Nd6 {[%clk 0:00:01.9]} 48... Rf5 {[%clk 0:00:46]} 49. Nxf5 {[%clk
0:00:01.2]} 49... exf5 {[%clk 0:00:45.7]} 50. Ke7 {[%clk 0:00:01.6]} 50... h1=Q
{[%clk 0:00:46.4]} 51. Kf8 {[%clk 0:00:01.9]} 51... f4 {[%clk 0:00:44.7]} 52.
Ke7 {[%clk 0:00:01.7]} 52... f3 {[%clk 0:00:45.6]} 53. Kf8 {[%clk 0:00:01.8]}
53... f2 {[%clk 0:00:46.5]} 54. Ke7 {[%clk 0:00:02.7]} 54... f1=Q {[%clk
0:00:47.3]} 55. Kf8 {[%clk 0:00:03.2]} 55... f5 {[%clk 0:00:47.2]} 56. Ke7
{[%clk 0:00:03.4]} 56... Qb7+ {[%clk 0:00:45.7]} 57. Kf8 {[%clk 0:00:04.3]}
57... Qfa6 {[%clk 0:00:42.9]} 58. Ke8 {[%clk 0:00:03.9]} 58... Qaa8# {[%clk
0:00:43.8]} 0-1

[Event "Early-Titled-Tuesday-Blitz-August-29-2023"]
[Site "Chess.com"]
[Date "2023.08.29"]
[Round "6"]
[White "AniJak"]
[Black "santosalberto1987"]
[Result "0-1"]
[WhiteElo "2377"]
[BlackElo "2552"]
[TimeControl "180+1"]
[EndTime "9:07:06 PDT"]
[Termination "santosalberto1987 won on time"]

1. e4 {[%clk 0:03:00.9]} 1... e6 {[%clk 0:02:59.6]} 2. d4 {[%clk 0:03:00.4]}
2... d5 {[%clk 0:03:00.2]} 3. Nc3 {[%clk 0:02:59.7]} 3... Nf6 {[%clk 0:03:00.2]}
4. Bg5 {[%clk 0:02:55.9]} 4... Bb4 {[%clk 0:03:00.3]} 5. Ne2 {[%clk 0:02:55.7]}
5... dxe4 {[%clk 0:02:57.9]} 6. a3 {[%clk 0:02:55.4]} 6... Be7 {[%clk
0:02:56.7]} 7. Bxf6 {[%clk 0:02:53.4]} 7... Bxf6 {[%clk 0:02:56.3]} 8. Nxe4
{[%clk 0:02:53.7]} 8... b6 {[%clk 0:02:56.7]} 9. Nxf6+ {[%clk 0:02:51.2]} 9...
Qxf6 {[%clk 0:02:56.7]} 10. Ng3 {[%clk 0:02:34.2]} 10... Bb7 {[%clk 0:02:56.2]}
11. Qd2 {[%clk 0:02:33.6]} 11... Nd7 {[%clk 0:02:54.4]} 12. O-O-O {[%clk
0:02:32.4]} 12... O-O-O {[%clk 0:02:43.8]} 13. Qc3 {[%clk 0:02:21.2]} 13... Kb8
{[%clk 0:02:39.8]} 14. f3 {[%clk 0:02:17.6]} 14... c5 {[%clk 0:02:34.1]} 15. Bb5
{[%clk 0:02:10.7]} 15... cxd4 {[%clk 0:02:30.5]} 16. Qb4 {[%clk 0:01:35.4]}
16... e5 {[%clk 0:02:20.4]} 17. Ne4 {[%clk 0:01:30.5]} 17... Bxe4 {[%clk
0:02:19.9]} 18. fxe4 {[%clk 0:01:30.3]} 18... Nc5 {[%clk 0:02:17.5]} 19. Rhf1
{[%clk 0:01:23.9]} 19... Qg6 {[%clk 0:02:07.7]} 20. a4 {[%clk 0:01:12.3]} 20...
Qd6 {[%clk 0:01:43.4]} 21. Qc4 {[%clk 0:00:54.7]} 21... f6 {[%clk 0:01:40.8]}
22. a5 {[%clk 0:00:53.3]} 22... Rc8 {[%clk 0:01:38.9]} 23. axb6 {[%clk
0:00:46.9]} 23... axb6 {[%clk 0:01:38.7]} 24. Qa2 {[%clk 0:00:42.9]} 24... Qc7
{[%clk 0:00:56.8]} 25. Rf3 {[%clk 0:00:26.9]} 25... Nxe4 {[%clk 0:00:51]} 26.
Bd3 {[%clk 0:00:17.4]} 26... Nc5 {[%clk 0:00:50.4]} 27. Bf5 {[%clk 0:00:17.2]}
27... Rcd8 {[%clk 0:00:45.8]} 28. Ra3 {[%clk 0:00:17.5]} 28... Qb7 {[%clk
0:00:45.3]} 29. Bg4 {[%clk 0:00:14.4]} 29... e4 {[%clk 0:00:41]} 30. b4 {[%clk
0:00:13.6]} 30... Nd7 {[%clk 0:00:15.4]} 31. Rxd4 {[%clk 0:00:13.7]} 31... Ne5
{[%clk 0:00:15.2]} 32. Rxd8+ {[%clk 0:00:11.3]} 32... Rxd8 {[%clk 0:00:15.3]}
33. Be2 {[%clk 0:00:11.7]} 33... Rc8 {[%clk 0:00:13.5]} 34. Ra6 {[%clk 0:00:11]}
34... Nd3+ {[%clk 0:00:12.4]} 35. Kb1 {[%clk 0:00:09.2]} 35... Nxb4 {[%clk
0:00:12.4]} 36. Qa4 {[%clk 0:00:08.4]} 36... Nxa6 {[%clk 0:00:12.2]} 37. Bxa6
{[%clk 0:00:08.6]} 37... Qc6 {[%clk 0:00:11.9]} 38. Qb3 {[%clk 0:00:06.6]} 38...
Rc7 {[%clk 0:00:11.7]} 39. Bb5 {[%clk 0:00:06.3]} 39... Qc5 {[%clk 0:00:10.3]}
40. Qa4 {[%clk 0:00:05.7]} 40... e3 {[%clk 0:00:09.2]} 41. Bd3 {[%clk
0:00:05.5]} 41... Qc3 {[%clk 0:00:06.1]} 42. Qe4 {[%clk 0:00:04.9]} 42... Qe5
{[%clk 0:00:05.2]} 43. Qb4 {[%clk 0:00:03]} 43... Kb7 {[%clk 0:00:04.4]} 44. Be2
{[%clk 0:00:02]} 44... Qc5 {[%clk 0:00:04]} 45. Bf3+ {[%clk 0:00:02.2]} 45...
Kb8 {[%clk 0:00:04.3]} 46. Qe4 {[%clk 0:00:02.4]} 46... Re7 {[%clk 0:00:02.1]}
47. Qa8+ {[%clk 0:00:01.6]} 47... Kc7 {[%clk 0:00:02.8]} 48. Qb7+ {[%clk
0:00:01.6]} 48... Kd6 {[%clk 0:00:02.6]} 49. Qb8+ {[%clk 0:00:01.6]} 49... Ke6
{[%clk 0:00:02.2]} 0-1

[Event "Early-Titled-Tuesday-Blitz-August-29-2023"]
[Site "Chess.com"]
[Date "2023.08.29"]
[Round "6"]
[White "DreamsAreFake"]
[Black "NasirAkylbekov"]
[Result "1-0"]
[WhiteElo "2654"]
[BlackElo "2456"]
[TimeControl "180+1"]
[EndTime "9:07:11 PDT"]
[Termination "DreamsAreFake won by resignation"]

1. Nf3 {[%clk 0:03:00]} 1... Nf6 {[%clk 0:03:00.3]} 2. g3 {[%clk 0:03:00]} 2...
b6 {[%clk 0:03:00.3]} 3. Bg2 {[%clk 0:02:58.1]} 3... Bb7 {[%clk 0:03:00]} 4. O-O
{[%clk 0:02:58.8]} 4... e6 {[%clk 0:02:58.6]} 5. b3 {[%clk 0:02:58.8]} 5... Be7
{[%clk 0:02:58.8]} 6. Bb2 {[%clk 0:02:59.5]} 6... O-O {[%clk 0:02:59.7]} 7. c4
{[%clk 0:02:59.5]} 7... d6 {[%clk 0:03:00.3]} 8. d3 {[%clk 0:02:58.7]} 8... Nbd7
{[%clk 0:02:59.7]} 9. Nbd2 {[%clk 0:02:59]} 9... Re8 {[%clk 0:03:00]} 10. Rc1
{[%clk 0:02:58.9]} 10... c5 {[%clk 0:02:59.9]} 11. e4 {[%clk 0:02:59.1]} 11...
a5 {[%clk 0:02:58.8]} 12. Qe2 {[%clk 0:02:53.1]} 12... Qc7 {[%clk 0:02:55]} 13.
d4 {[%clk 0:02:51.9]} 13... Red8 {[%clk 0:02:40.5]} 14. d5 {[%clk 0:02:50.4]}
14... e5 {[%clk 0:02:33.9]} 15. a4 {[%clk 0:02:44]} 15... Nf8 {[%clk 0:02:32.7]}
16. Ne1 {[%clk 0:02:44.5]} 16... N6d7 {[%clk 0:02:30.6]} 17. f4 {[%clk
0:02:43.4]} 17... Bf6 {[%clk 0:02:30.5]} 18. Nd3 {[%clk 0:02:37.6]} 18... Re8
{[%clk 0:02:26.6]} 19. h4 {[%clk 0:02:33.7]} 19... exf4 {[%clk 0:02:23.6]} 20.
Bxf6 {[%clk 0:02:26]} 20... Nxf6 {[%clk 0:02:24.5]} 21. gxf4 {[%clk 0:02:25.4]}
21... Bc8 {[%clk 0:02:23]} 22. Rce1 {[%clk 0:02:20.6]} 22... Bg4 {[%clk
0:02:22]} 23. Qf2 {[%clk 0:02:21.1]} 23... h5 {[%clk 0:02:19.8]} 24. e5 {[%clk
0:02:19.7]} 24... N6h7 {[%clk 0:02:17.1]} 25. Ne4 {[%clk 0:02:19]} 25... dxe5
{[%clk 0:02:16]} 26. fxe5 {[%clk 0:02:19.9]} 26... Ng6 {[%clk 0:02:10.8]} 27.
Nd6 {[%clk 0:02:13.7]} 27... Rf8 {[%clk 0:02:05.5]} 28. Nb5 {[%clk 0:02:10.4]}
28... Qe7 {[%clk 0:02:04.4]} 29. d6 {[%clk 0:02:10.5]} 29... Qxh4 {[%clk
0:02:04.2]} 30. Bxa8 {[%clk 0:02:08.6]} 30... Qxf2+ {[%clk 0:02:03.2]} 31. Nxf2
{[%clk 0:02:07.6]} 31... Rxa8 {[%clk 0:02:04.1]} 32. Nxg4 {[%clk 0:02:06.8]}
32... hxg4 {[%clk 0:02:05]} 33. e6 {[%clk 0:02:07.6]} 33... fxe6 {[%clk
0:02:02.7]} 34. Rxe6 {[%clk 0:02:08.5]} 34... Ngf8 {[%clk 0:01:54.6]} 35. Re7
{[%clk 0:01:57.4]} 35... Ng5 {[%clk 0:01:55]} 36. Rd1 {[%clk 0:01:30.8]} 36...
Rd8 {[%clk 0:01:52.9]} 37. d7 {[%clk 0:01:25.5]} 37... Ngh7 {[%clk 0:01:38.9]}
38. Na7 {[%clk 0:01:23.8]} 38... Nf6 {[%clk 0:01:38.1]} 39. Nc6 {[%clk
0:01:18.1]} 39... Rxd7 {[%clk 0:01:38.1]} 40. Rdxd7 {[%clk 0:01:18]} 40... N8xd7
{[%clk 0:01:37.6]} 41. Ne5 {[%clk 0:01:14.3]} 41... Nxe5 {[%clk 0:01:36]} 42.
Rxe5 {[%clk 0:01:15.2]} 42... Kf7 {[%clk 0:01:36.3]} 43. Kg2 {[%clk 0:01:15.6]}
43... Nd7 {[%clk 0:01:33.2]} 44. Rd5 {[%clk 0:01:14.9]} 44... Ke6 {[%clk
0:01:33.4]} 45. Kg3 {[%clk 0:01:14.7]} 45... Nf6 {[%clk 0:01:29.1]} 46. Rd8
{[%clk 0:01:12.6]} 46... Kf5 {[%clk 0:01:28.2]} 47. Rb8 {[%clk 0:01:10.4]} 47...
Ne4+ {[%clk 0:01:25.1]} 48. Kg2 {[%clk 0:01:10.8]} 48... g5 {[%clk 0:01:19]} 49.
Rxb6 {[%clk 0:01:10.6]} 49... g3 {[%clk 0:01:19.5]} 50. Rb5 {[%clk 0:01:09.6]}
50... Kg4 {[%clk 0:01:17]} 51. Rxa5 {[%clk 0:01:09.7]} 51... Nf6 {[%clk
0:01:07.8]} 52. Rxc5 {[%clk 0:01:09.1]} 52... Nh5 {[%clk 0:01:08.7]} 53. a5
{[%clk 0:00:41.1]} 53... Nf4+ {[%clk 0:01:09.5]} 54. Kh1 {[%clk 0:00:40.5]}
54... g2+ {[%clk 0:00:30.5]} 55. Kh2 {[%clk 0:00:39.7]} 55... Kh4 {[%clk
0:00:30.5]} 56. Rxg5 {[%clk 0:00:36.4]} 56... Kxg5 {[%clk 0:00:28.9]} 57. a6
{[%clk 0:00:36.8]} 57... Ne6 {[%clk 0:00:29.2]} 58. a7 {[%clk 0:00:29.6]} 58...
Nc7 {[%clk 0:00:29.1]} 59. b4 {[%clk 0:00:29.9]} 59... Kf4 {[%clk 0:00:29.9]}
60. b5 {[%clk 0:00:29.6]} 60... Kf3 {[%clk 0:00:28.7]} 61. Kg1 {[%clk
0:00:29.4]} 61... Kg3 {[%clk 0:00:26.1]} 62. b6 {[%clk 0:00:27.5]} 62... Ne6
{[%clk 0:00:26.1]} 63. a8=Q {[%clk 0:00:27.3]} 1-0

[Event "Early-Titled-Tuesday-Blitz-August-29-2023"]
[Site "Chess.com"]
[Date "2023.08.29"]
[Round "6"]
[White "fastestmindalive"]
[Black "kuli4ik"]
[Result "1-0"]
[WhiteElo "2743"]
[BlackElo "2896"]
[TimeControl "180+1"]
[EndTime "9:07:12 PDT"]
[Termination "fastestmindalive won by checkmate"]

1. e4 {[%clk 0:02:56.2]} 1... Nf6 {[%clk 0:02:58.1]} 2. e5 {[%clk 0:02:54.7]}
2... Nd5 {[%clk 0:02:58.3]} 3. d4 {[%clk 0:02:55]} 3... d6 {[%clk 0:02:58.4]} 4.
Nf3 {[%clk 0:02:55.7]} 4... Nb6 {[%clk 0:02:58.5]} 5. exd6 {[%clk 0:02:54.6]}
5... cxd6 {[%clk 0:02:58.4]} 6. a4 {[%clk 0:02:48.3]} 6... g6 {[%clk 0:02:57.5]}
7. a5 {[%clk 0:02:48.3]} 7... N6d7 {[%clk 0:02:57.1]} 8. Bc4 {[%clk 0:02:46]}
8... Bg7 {[%clk 0:02:54.8]} 9. h4 {[%clk 0:02:21.1]} 9... h6 {[%clk 0:02:50.7]}
10. Be3 {[%clk 0:02:16.2]} 10... Nf6 {[%clk 0:02:48.2]} 11. Nbd2 {[%clk
0:01:57.8]} 11... Nc6 {[%clk 0:02:40.4]} 12. a6 {[%clk 0:01:56.1]} 12... bxa6
{[%clk 0:02:33.6]} 13. Bxa6 {[%clk 0:01:56.2]} 13... Bxa6 {[%clk 0:02:34.1]} 14.
Rxa6 {[%clk 0:01:57.1]} 14... Nb4 {[%clk 0:02:32.5]} 15. Ra4 {[%clk 0:01:53.4]}
15... a5 {[%clk 0:02:30.1]} 16. O-O {[%clk 0:01:50.7]} 16... O-O {[%clk
0:02:29.2]} 17. c3 {[%clk 0:01:50.6]} 17... Nbd5 {[%clk 0:02:26.5]} 18. Nc4
{[%clk 0:01:46.2]} 18... Nb6 {[%clk 0:02:19.5]} 19. Nxb6 {[%clk 0:01:42]} 19...
Qxb6 {[%clk 0:02:20.4]} 20. Qd2 {[%clk 0:01:42.5]} 20... Rfb8 {[%clk 0:02:18.6]}
21. b4 {[%clk 0:01:17.3]} 21... axb4 {[%clk 0:02:07.2]} 22. Rxb4 {[%clk
0:01:18.2]} 22... Qc6 {[%clk 0:02:07.4]} 23. Rxb8+ {[%clk 0:01:12.1]} 23... Rxb8
{[%clk 0:02:08.3]} 24. Bxh6 {[%clk 0:01:12.8]} 24... Bxh6 {[%clk 0:02:07.6]} 25.
Qxh6 {[%clk 0:01:12.6]} 25... Qxc3 {[%clk 0:02:08.1]} 26. Re1 {[%clk 0:01:09.2]}
26... Qd3 {[%clk 0:01:35.8]} 27. h5 {[%clk 0:00:35.3]} 27... Rb1 {[%clk
0:01:00.2]} 28. hxg6 {[%clk 0:00:32.5]} 28... Rxe1+ {[%clk 0:00:59.2]} 29. Nxe1
{[%clk 0:00:32.6]} 29... Qxd4 {[%clk 0:00:55.3]} 30. gxf7+ {[%clk 0:00:22.7]}
30... Kxf7 {[%clk 0:00:56.2]} 31. Qc1 {[%clk 0:00:11.6]} 31... Ne4 {[%clk
0:00:44.5]} 32. Qc2 {[%clk 0:00:10.5]} 32... d5 {[%clk 0:00:43]} 33. Nf3 {[%clk
0:00:10.5]} 33... Qa1+ {[%clk 0:00:42.2]} 34. Kh2 {[%clk 0:00:10.1]} 34... Qa7
{[%clk 0:00:25.2]} 35. Qd3 {[%clk 0:00:08.1]} 35... Qc7+ {[%clk 0:00:22.3]} 36.
g3 {[%clk 0:00:07.4]} 36... Qc5 {[%clk 0:00:20]} 37. Ne5+ {[%clk 0:00:06.2]}
37... Ke6 {[%clk 0:00:18.6]} 38. Ng4 {[%clk 0:00:05.2]} 38... Kd7 {[%clk
0:00:09.6]} 39. Qf3 {[%clk 0:00:04]} 39... Qd4 {[%clk 0:00:08.1]} 40. Qf5+
{[%clk 0:00:03.7]} 40... Kd6 {[%clk 0:00:08.4]} 41. Qf4+ {[%clk 0:00:03.5]}
41... e5 {[%clk 0:00:07.7]} 42. Qf8+ {[%clk 0:00:03.5]} 42... Kc6 {[%clk
0:00:07.9]} 43. Kg2 {[%clk 0:00:04.1]} 43... Nd6 {[%clk 0:00:07.5]} 44. Qa8+
{[%clk 0:00:03.9]} 44... Kc7 {[%clk 0:00:07.4]} 45. Nf6 {[%clk 0:00:03.6]} 45...
Nb7 {[%clk 0:00:04.1]} 46. Qe8 {[%clk 0:00:02.7]} 46... e4 {[%clk 0:00:03.9]}
47. Qd7+ {[%clk 0:00:02.6]} 47... Kb8 {[%clk 0:00:04.4]} 48. Nxd5 {[%clk
0:00:03]} 48... Nc5 {[%clk 0:00:04]} 49. Qd6+ {[%clk 0:00:02.9]} 49... Kb7
{[%clk 0:00:04.2]} 50. Qb6+ {[%clk 0:00:03.5]} 50... Kc8 {[%clk 0:00:04.7]} 51.
Qc7# {[%clk 0:00:03.7]} 1-0

[Event "Early-Titled-Tuesday-Blitz-August-29-2023"]
[Site "Chess.com"]
[Date "2023.08.29"]
[Round "6"]
[White "Andrei_Skvortsov"]
[Black "Zq1"]
[Result "1/2-1/2"]
[WhiteElo "2691"]
[BlackElo "2539"]
[TimeControl "180+1"]
[EndTime "9:07:12 PDT"]
[Termination "Game drawn by repetition"]

1. e4 {[%clk 0:03:00.9]} 1... c5 {[%clk 0:03:00.1]} 2. d4 {[%clk 0:03:00.7]}
2... cxd4 {[%clk 0:02:59.4]} 3. Qxd4 {[%clk 0:03:01.6]} 3... Nc6 {[%clk
0:02:58.2]} 4. Qd3 {[%clk 0:03:02.5]} 4... g6 {[%clk 0:02:58.2]} 5. Nc3 {[%clk
0:03:02.7]} 5... Bg7 {[%clk 0:02:58.4]} 6. Nf3 {[%clk 0:03:03.4]} 6... Nf6
{[%clk 0:02:57.8]} 7. Be2 {[%clk 0:03:04]} 7... O-O {[%clk 0:02:57.1]} 8. O-O
{[%clk 0:03:04.6]} 8... d6 {[%clk 0:02:56.1]} 9. Nd5 {[%clk 0:03:05]} 9... e6
{[%clk 0:02:49.5]} 10. Nxf6+ {[%clk 0:03:03.2]} 10... Bxf6 {[%clk 0:02:49.7]}
11. c3 {[%clk 0:03:02.7]} 11... d5 {[%clk 0:02:32.5]} 12. Bh6 {[%clk 0:02:55.9]}
12... Re8 {[%clk 0:02:31.6]} 13. Rfd1 {[%clk 0:02:54.2]} 13... Qc7 {[%clk
0:02:16]} 14. Qe3 {[%clk 0:02:48.1]} 14... dxe4 {[%clk 0:02:08.8]} 15. Qxe4
{[%clk 0:02:46.4]} 15... e5 {[%clk 0:02:03.6]} 16. Qa4 {[%clk 0:02:31.1]} 16...
Be6 {[%clk 0:01:54.5]} 17. Ng5 {[%clk 0:02:25.4]} 17... Bg7 {[%clk 0:01:35.6]}
18. Bxg7 {[%clk 0:02:22.8]} 18... Kxg7 {[%clk 0:01:35.4]} 19. Nxe6+ {[%clk
0:02:23.2]} 19... Rxe6 {[%clk 0:01:34.8]} 20. Bf3 {[%clk 0:02:20.2]} 20... Rae8
{[%clk 0:01:31.8]} 21. Be4 {[%clk 0:02:16.9]} 21... f5 {[%clk 0:01:30.3]} 22.
Bd5 {[%clk 0:02:15.6]} 22... R6e7 {[%clk 0:01:30.7]} 23. g3 {[%clk 0:02:14.2]}
23... e4 {[%clk 0:01:30.5]} 24. Bxc6 {[%clk 0:02:11.6]} 24... Qxc6 {[%clk
0:01:24]} 25. Qxc6 {[%clk 0:01:33.1]} 25... bxc6 {[%clk 0:01:23.4]} 26. Rd6
{[%clk 0:01:33]} 26... Re6 {[%clk 0:01:21.7]} 27. Rad1 {[%clk 0:01:32.7]} 27...
Kf6 {[%clk 0:01:19.3]} 28. Rd7 {[%clk 0:01:31]} 28... R8e7 {[%clk 0:01:18.6]}
29. R1d6 {[%clk 0:01:28.8]} 29... Rxd6 {[%clk 0:01:09.6]} 30. Rxd6+ {[%clk
0:01:26.1]} 30... Re6 {[%clk 0:01:09.9]} 31. Rd4 {[%clk 0:01:24.9]} 31... c5
{[%clk 0:01:07.8]} 32. Rd5 {[%clk 0:01:23.4]} 32... Rb6 {[%clk 0:00:59.8]} 33.
b3 {[%clk 0:01:22.9]} 33... Ra6 {[%clk 0:00:56.9]} 34. Rxc5 {[%clk 0:01:22.9]}
34... Rxa2 {[%clk 0:00:56.6]} 35. h4 {[%clk 0:01:18.3]} 35... a5 {[%clk
0:00:52.7]} 36. Rc7 {[%clk 0:01:16.3]} 36... Rb2 {[%clk 0:00:49.1]} 37. Rb7
{[%clk 0:01:11.8]} 37... Ke5 {[%clk 0:00:43.2]} 38. Rb5+ {[%clk 0:01:10.6]}
38... Ke6 {[%clk 0:00:42.3]} 39. c4 {[%clk 0:01:10.5]} 39... h6 {[%clk
0:00:35.4]} 40. Rxa5 {[%clk 0:00:50.4]} 40... Rxb3 {[%clk 0:00:33.7]} 41. Ra6+
{[%clk 0:00:50.8]} 41... Kf7 {[%clk 0:00:33.6]} 42. c5 {[%clk 0:00:30.5]} 42...
Rc3 {[%clk 0:00:32.8]} 43. Rc6 {[%clk 0:00:29.5]} 43... g5 {[%clk 0:00:29.8]}
44. h5 {[%clk 0:00:29]} 44... f4 {[%clk 0:00:29]} 45. gxf4 {[%clk 0:00:27]}
45... gxf4 {[%clk 0:00:28.7]} 46. Kf1 {[%clk 0:00:27.6]} 46... f3 {[%clk
0:00:27.1]} 47. Ke1 {[%clk 0:00:27.9]} 47... Rc2 {[%clk 0:00:25.2]} 48. Rxh6
{[%clk 0:00:22.2]} 48... Re2+ {[%clk 0:00:21.4]} 49. Kd1 {[%clk 0:00:14.3]}
49... Rxf2 {[%clk 0:00:21.2]} 50. c6 {[%clk 0:00:14.8]} 50... e3 {[%clk
0:00:18.2]} 51. c7 {[%clk 0:00:15.1]} 51... e2+ {[%clk 0:00:16.7]} 52. Kd2
{[%clk 0:00:16]} 52... Rf1 {[%clk 0:00:16.2]} 53. Re6 {[%clk 0:00:15.6]} 53...
Rd1+ {[%clk 0:00:14.8]} 54. Kc2 {[%clk 0:00:15.8]} 54... Kxe6 {[%clk 0:00:11.7]}
55. c8=Q+ {[%clk 0:00:16.2]} 55... Ke5 {[%clk 0:00:12.2]} 56. Qc5+ {[%clk
0:00:13.9]} 56... Ke4 {[%clk 0:00:12.1]} 57. Qe7+ {[%clk 0:00:13.7]} 57... Kf4
{[%clk 0:00:11.9]} 58. Qf6+ {[%clk 0:00:11]} 58... Ke3 {[%clk 0:00:11.8]} 59.
Qg5+ {[%clk 0:00:09.8]} 59... Kf2 {[%clk 0:00:11.4]} 60. Qh4+ {[%clk 0:00:10.2]}
60... Kg2 {[%clk 0:00:11.6]} 61. Qg4+ {[%clk 0:00:10.6]} 61... Kf2 {[%clk
0:00:11.8]} 62. Qh4+ {[%clk 0:00:10.8]} 62... Kg2 {[%clk 0:00:12]} 63. Qg4+
{[%clk 0:00:11.2]} 63... Kf2 {[%clk 0:00:12.2]} 64. Qh4+ {[%clk 0:00:11.5]}
1/2-1/2